fUST/lending_fUST_20250825
["ID","MTS","AMOUNT","RATE_DAILY","PERIOD"]
[381286465,1756126767865,-300.0,0.00041094,30]
[381286466,1756126767891,-2434.74389024,0.00041094,30]
[381286467,1756126767918,-20633.42279861,0.00041094,30]
[381286468,1756126767946,-151.0,0.00041094,30]
[381286469,1756126767972,-156.587,0.00041094,30]
[381286470,1756126768000,-250.0,0.00041094,30]
[381286471,1756126768027,-300.0,0.00041094,30]
[381286472,1756126768052,-151.0,0.00041094,30]
[381286473,1756126768078,-2524.82941417,0.00041094,30]
[381286474,1756126768103,-157.61400207,0.00041094,30]
[381286475,1756126768128,-250.0,0.00041094,30]
[381286476,1756126768154,-162.380719,0.00041094,30]
[381286477,1756126768179,-300.0,0.00041094,30]
[381286478,1756126768206,-21396.85944216,0.00041094,30]
[381286479,1756126768232,-151.0,0.00041094,30]
[381286480,1756126768258,-2618.2481025,0.00041094,30]
[381286481,1756126768284,-250.0,0.00041094,30]
[381286482,1756126768310,-168.3888056,0.00041094,30]
[381286483,1756126768337,-151.0,0.00041094,30]
[381286484,1756126768363,-300.0,0.00041094,30]
[381286485,1756126768391,-2391.17051356,0.00041094,30]
[381286486,1756126768418,-250.0,0.00041094,30]
[381286487,1756126768443,-22188.54324152,0.00041094,30]
[381286488,1756126768473,-174.61919141,0.00041094,30]
[381286489,1756126768499,-300.0,0.00041094,30]
[381286490,1756126768524,-151.0,0.00041094,30]
[381286491,1756126768548,-250.0,0.00041094,30]
[381286492,1756126768572,-9038.50662933,0.00041094,30]
[381286493,1756126768596,-181.08010149,0.00041094,30]
[381286494,1756126768622,-300.0,0.00041094,30]
[381286495,1756126768647,-250.0,0.00041094,30]
[381286496,1756126768674,-151.0,0.00041094,30]
[381286497,1756126768699,-187.78006525,0.00041094,30]
[381286498,1756126768724,-151.0,0.00041094,30]
[381286499,1756126768750,-300.0,0.00041094,30]
[381286500,1756126768775,-194.72792766,0.00041094,30]
[381286501,1756126768801,-151.5643363,0.00041094,30]
[381286502,1756126768827,-300.0,0.00041094,30]
[381286503,1756126768852,-201.93286101,0.00041094,30]
[381286504,1756126768877,-151.0,0.00041094,30]
[381286505,1756126768903,-300.0,0.00041094,30]
[381286506,1756126768929,-300.0,0.00041094,30]
[381286507,1756126768960,-151.0,0.00041094,30]
[381286508,1756126768985,-300.0,0.00041094,30]
[381286509,1756126769011,-300.0,0.00041094,30]
[381286510,1756126769036,-500.0,0.00041094,30]
[381286511,1756126769061,-300.0,0.00041094,30]
[381286512,1756126769086,-300.0,0.00041094,30]
[381286513,1756126769112,-500.0,0.00041094,30]
[381286514,1756126769137,-300.0,0.00041094,30]
[381286515,1756126769162,-300.0,0.00041094,30]
[381286516,1756126769189,-500.0,0.00041094,30]
[381286517,1756126769218,-300.0,0.00041094,30]
[381286518,1756126769242,-300.0,0.00041094,30]
[381286519,1756126769268,-500.0,0.00041094,30]
[381286520,1756126769293,-300.0,0.00041094,30]
[381286521,1756126769318,-300.0,0.00041094,30]
[381286522,1756126769346,-500.0,0.00041094,30]
[381286523,1756126769370,-300.0,0.00041094,30]
[381286524,1756126769394,-300.0,0.00041094,30]
[381286525,1756126769419,-151.0,0.00041094,30]
[381286526,1756126769444,-500.0,0.00041094,30]
[381286527,1756126769469,-300.0,0.00041094,30]
[381286528,1756126769494,-300.0,0.00041094,30]
[381286529,1756126769519,-500.0,0.00041094,30]
[381286530,1756126769544,-151.0,0.00041094,30]
[381286531,1756126769568,-300.0,0.00041094,30]
[381286532,1756126769593,-300.0,0.00041094,30]
[381286533,1756126769617,-151.0,0.00041094,30]
[381286534,1756126769643,-500.0,0.00041094,30]
[381286535,1756126769668,-300.0,0.00041094,30]
[381286536,1756126769694,-151.0,0.00041094,30]
[381286537,1756126769720,-500.0,0.00041094,30]
[381286538,1756126769745,-500.0,0.00041094,30]
[381286539,1756126769770,-151.0,0.00041094,30]
[381286540,1756126769794,-151.33110986,0.00041094,30]
[381286541,1756126769821,-500.0,0.00041094,30]
[381286542,1756126769847,-500.0,0.00041094,30]
[381286543,1756126769873,-500.0,0.00041094,30]
[381286544,1756126769900,-500.0,0.00041094,30]
[381286545,1756126769927,-500.0,0.00041094,30]
[381286546,1756126769955,-500.0,0.00041094,30]
[381286547,1756126769981,-500.0,0.00041094,30]
[381286548,1756126770008,-500.0,0.00041094,30]
[381286549,1756126770036,-500.0,0.00041094,30]
[381286550,1756126770061,-500.0,0.00041094,30]
[381286551,1756126770085,-500.0,0.00041095,31]
[381286552,1756126770110,-500.0,0.00041095,31]
[381286553,1756126770136,-480.0,0.00041095,30]
[381286554,1756126770164,-480.0,0.00041095,30]
[381286555,1756126770189,-480.0,0.00041095,30]
[381286556,1756126770215,-480.0,0.00041095,30]
[381286557,1756126770239,-480.0,0.00041095,30]
[381286558,1756126770262,-480.0,0.00041095,30]
[381286559,1756126770285,-480.0,0.00041095,30]
[381286560,1756126770310,-480.0,0.00041095,30]
[381286561,1756126770334,-480.0,0.00041095,30]
[381286562,1756126770361,-480.0,0.00041095,30]
[381286563,1756126770385,-1977.48,0.00041095,30]
[381286564,1756126770572,-480.0,0.00041095,30]
[381286565,1756126770599,-480.0,0.00041095,30]
[381286566,1756126770623,-480.0,0.00041095,30]
[381286567,1756126770647,-480.0,0.00041095,30]
[381286568,1756126770672,-1105.07,0.00041095,30]
[381286569,1756126770696,-480.0,0.00041095,30]
[381286570,1756126770720,-480.0,0.00041095,30]
[381286571,1756126770746,-480.0,0.00041095,30]
[381286572,1756126770770,-480.0,0.00041095,30]
[381286573,1756126770795,-480.0,0.00041095,30]
[381286574,1756126770820,-811.93,0.00041095,30]
[381286575,1756126770844,-460.88692793,0.00041095,30]
[381286576,1756126770867,-480.0,0.00041095,30]
[381286577,1756126770892,-480.0,0.00041095,30]
[381286578,1756126770920,-480.0,0.00041095,30]
[381286579,1756126770952,-2913.18,0.00041095,30]
[381286580,1756126770977,-480.0,0.00041095,30]
[381286581,1756126771002,-480.0,0.00041095,30]
[381286582,1756126771028,-480.0,0.00041095,30]
[381286583,1756126771052,-480.0,0.00041095,30]
[381286584,1756126771076,-480.0,0.00041095,30]
[381286585,1756126771102,-480.0,0.00041095,30]
[381286586,1756126771128,-480.0,0.00041095,30]
[381286587,1756126771153,-480.0,0.00041095,30]
[381286588,1756126771180,-228.89774205,0.00041095,30]
[381286589,1756126771205,-931.19,0.00041095,30]
[381286590,1756126771231,-480.0,0.00041095,30]
[381286591,1756126771255,-944.14,0.00041095,30]
[381286592,1756126771280,-460.52244239,0.00041095,30]
[381286593,1756126771306,-480.0,0.00041095,30]
[381286594,1756126771331,-480.0,0.00041095,30]
[381286595,1756126771356,-480.0,0.00041095,30]
[381286596,1756126771380,-480.0,0.00041095,30]
[381286597,1756126771408,-480.0,0.00041095,30]
[381286598,1756126771433,-480.0,0.00041095,30]
[381286599,1756126771458,-480.0,0.00041095,30]
[381286600,1756126771483,-480.0,0.00041095,30]
[381286601,1756126771509,-480.0,0.00041095,30]
[381286602,1756126771533,-480.0,0.00041095,30]
[381286603,1756126771558,-480.0,0.00041095,30]
[381286604,1756126771583,-480.0,0.00041095,30]
[381286605,1756126771608,-480.0,0.00041095,30]
[381286606,1756126771633,-699.42,0.00041095,30]
[381286607,1756126771659,-643.31,0.00041095,30]
[381286608,1756126771686,-1177.15,0.00041095,30]
[381286609,1756126771711,-480.0,0.00041095,30]
[381286610,1756126771737,-498.32,0.00041095,30]
[381286611,1756126771765,-480.0,0.00041095,30]
[381286612,1756126771791,-503.42708413,0.00041095,30]
[381286613,1756126771818,-480.0,0.00041095,30]
[381286614,1756126771844,-480.0,0.00041095,30]
[381286615,1756126771877,-480.0,0.00041095,30]
[381286616,1756126771904,-747.73,0.00041095,30]
[381286617,1756126771932,-586.75,0.00041095,30]
[381286618,1756126771978,-480.0,0.00041095,30]
[381286619,1756126772022,-480.0,0.00041095,30]
[381286620,1756126772063,-480.0,0.00041095,30]
[381286621,1756126772097,-514.91,0.00041095,30]
[381286622,1756126772131,-480.0,0.00041095,30]
[381286623,1756126772179,-529.25990432,0.00041095,30]
[381286624,1756126772235,-2326.06,0.00041095,30]
[381286625,1756126772285,-480.0,0.00041095,30]
[381286626,1756126772342,-1006.77,0.00041095,30]
[381286627,1756126772400,-480.0,0.00041095,30]
[381286628,1756126772461,-2761.93,0.00041095,30]
[381286629,1756126772509,-480.0,0.00041095,30]
[381286630,1756126772556,-480.0,0.00041095,30]
[381286631,1756126772604,-607.22,0.00041095,30]
[381286632,1756126772654,-480.0,0.00041095,30]
[381286633,1756126772703,-480.0,0.00041095,30]
[381286634,1756126772748,-480.0,0.00041095,30]
[381286635,1756126772795,-845.88,0.00041095,30]
[381286636,1756126772839,-480.0,0.00041095,30]
[381286637,1756126772885,-480.0,0.00041095,30]
[381286638,1756126772934,-566.76,0.00041095,30]
[381286639,1756126772988,-480.0,0.00041095,30]
[381286640,1756126773034,-894.54,0.00041095,30]
[381286641,1756126773087,-480.0,0.00041095,30]
[381286642,1756126773136,-480.0,0.00041095,30]
[381286643,1756126773189,-503.39,0.00041095,30]
[381286644,1756126773234,-480.0,0.00041095,30]
[381286645,1756126773284,-480.0,0.00041095,30]
[381286646,1756126773327,-460.25256797,0.00041095,30]
[381286647,1756126773374,-480.0,0.00041095,30]
[381286648,1756126773417,-480.0,0.00041095,30]
[381286649,1756126773467,-480.0,0.00041095,30]
[381286650,1756126773515,-480.0,0.00041095,30]
[381286651,1756126773559,-480.0,0.00041095,30]
[381286652,1756126773602,-660.27,0.00041095,30]
[381286653,1756126773645,-759.54,0.00041095,30]
[381286654,1756126773688,-480.0,0.00041095,30]
[381286655,1756126773734,-480.0,0.00041095,30]
[381286656,1756126773778,-480.0,0.00041095,30]
[381286657,1756126773821,-303.63914254,0.00041095,30]
[381286658,1756126773865,-862.07,0.00041095,30]
[381286659,1756126773911,-480.0,0.00041095,30]
[381286660,1756126773958,-480.0,0.00041095,30]
[381286661,1756126774002,-671.3,0.00041095,30]
[381286662,1756126774053,-740.62,0.00041095,30]
[381286663,1756126774104,-1353.62,0.00041095,30]
[381286664,1756126774156,-480.0,0.00041095,30]
[381286665,1756126774205,-912.48,0.00041095,30]
[381286666,1756126774253,-878.72,0.00041095,30]
[381286667,1756126774302,-480.0,0.00041095,30]
[381286668,1756126774352,-480.0,0.00041095,30]
[381286669,1756126774396,-480.0,0.00041095,30]
[381286670,1756126774439,-1189.95,0.00041095,30]
[381286671,1756126774482,-480.0,0.00041095,30]
[381286672,1756126774524,-1113.23,0.00041095,30]
[381286673,1756126774566,-480.0,0.00041095,30]
[381286674,1756126774607,-480.0,0.00041095,30]
[381286675,1756126774648,-936.4,0.00041095,30]
[381286676,1756126774691,-186.50004816,0.00041095,30]
[381286677,1756126774732,-1118.38,0.00041095,30]
[381286678,1756126774768,-825.51,0.00041095,30]
[381286679,1756126774803,-1185.16,0.00041095,30]
[381286680,1756126774838,-589.51,0.00041095,30]
[381286681,1756126774872,-556.17,0.00041095,30]
[381286682,1756126775239,-480.0,0.00041095,30]
[381286683,1756126775284,-480.0,0.00041095,30]
[381286684,1756126775318,-480.0,0.00041095,30]
[381286685,1756126775350,-884.3,0.00041095,30]
[381286686,1756126775383,-480.0,0.00041095,30]
[381286687,1756126775419,-686.06,0.00041095,30]
[381286688,1756126775454,-480.0,0.00041095,30]
[381286689,1756126775488,-495.13,0.00041095,30]
[381286690,1756126775521,-610.93,0.00041095,30]
[381286691,1756126775556,-480.0,0.00041095,30]
[381286692,1756126775590,-480.0,0.00041095,30]
[381286693,1756126775624,-480.0,0.00041095,30]
[381286694,1756126775657,-482.36,0.00041095,30]
[381286695,1756126775691,-480.0,0.00041095,30]
[381286696,1756126775726,-2137.64,0.00041095,30]
[381286697,1756126775759,-850.54,0.00041095,30]
[381286698,1756126775793,-547.43938802,0.00041095,30]
[381286699,1756126775827,-480.0,0.00041095,30]
[381286700,1756126775860,-715.89,0.00041095,30]
[381286701,1756126775894,-480.0,0.00041095,30]
[381286702,1756126775926,-480.0,0.00041095,30]
[381286703,1756126775959,-480.0,0.00041095,30]
[381286704,1756126775992,-1606.61,0.00041095,30]
[381286705,1756126776027,-1684.16,0.00041095,30]
[381286706,1756126776060,-480.0,0.00041095,30]
[381286707,1756126776092,-579.51,0.00041095,30]
[381286708,1756126776125,-547.94,0.00041095,30]
[381286709,1756126776159,-480.0,0.00041095,30]
[381286710,1756126776195,-593.25,0.00041095,30]
[381286711,1756126776229,-480.644988,0.00041095,30]
[381286712,1756126776264,-689.16,0.00041095,30]
[381286713,1756126776299,-480.0,0.00041095,30]
[381286714,1756126776337,-824.03,0.00041095,30]
[381286715,1756126776373,-480.0,0.00041095,30]
[381286716,1756126776409,-480.0,0.00041095,30]
[381286717,1756126776446,-480.0,0.00041095,30]
[381286718,1756126776480,-1645.32,0.00041095,30]
[381286719,1756126776515,-480.0,0.00041095,30]
[381286720,1756126776550,-480.0,0.00041095,30]
[381286721,1756126776587,-480.0,0.00041095,30]
[381286722,1756126776623,-480.0,0.00041095,30]
[381286723,1756126776656,-480.0,0.00041095,30]
[381286724,1756126776691,-480.0,0.00041095,30]
[381286725,1756126776725,-1931.57,0.00041095,30]
[381286726,1756126776758,-1239.72,0.00041095,30]
[381286727,1756126776790,-480.0,0.00041095,30]
[381286728,1756126776823,-480.0,0.00041095,30]
[381286729,1756126776857,-904.15,0.00041095,30]
[381286730,1756126776890,-480.0,0.00041095,30]
[381286731,1756126776923,-1129.32,0.00041095,30]
[381286732,1756126776955,-577.31597979,0.00041095,30]
[381286733,1756126776991,-2209.87,0.00041095,30]
[381286734,1756126777026,-480.0,0.00041095,30]
[381286735,1756126777060,-929.85,0.00041095,30]
[381286736,1756126777092,-480.0,0.00041095,30]
[381286737,1756126777124,-573.12,0.00041095,30]
[381286738,1756126777157,-480.0,0.00041095,30]
[381286739,1756126777191,-920.67,0.00041095,30]
[381286740,1756126777223,-480.0,0.00041095,30]
[381286741,1756126777253,-480.0,0.00041095,30]
[381286742,1756126777285,-727.5,0.00041095,30]
[381286743,1756126777317,-480.92170268,0.00041095,30]
[381286744,1756126777349,-3305.49,0.00041095,30]
[381286745,1756126777380,-480.0,0.00041095,30]
[381286746,1756126777412,-4293.81,0.00041095,30]
[381286747,1756126777445,-480.0,0.00041095,30]
[381286748,1756126777476,-480.0,0.00041095,30]
[381286749,1756126777509,-480.0,0.00041095,30]
[381286750,1756126777539,-542.09,0.00041095,30]
[381286751,1756126777572,-1538.29,0.00041095,30]
[381286752,1756126777603,-480.0,0.00041095,30]
[381286753,1756126777635,-3140.6,0.00041095,30]
[381286754,1756126777667,-480.0,0.00041095,30]
[381286755,1756126777700,-960.62,0.00041095,30]
[381286756,1756126777732,-1161.07,0.00041095,30]
[381286757,1756126777764,-480.0,0.00041095,30]
[381286758,1756126777802,-504.97,0.00041095,30]
[381286759,1756126777838,-480.0,0.00041095,30]
[381286760,1756126777872,-480.0,0.00041095,30]
[381286761,1756126777908,-523.53,0.00041095,30]
[381286762,1756126777949,-480.0,0.00041095,30]
[381286763,1756126777995,-480.0,0.00041095,30]
[381286764,1756126778030,-480.0,0.00041095,30]
[381286765,1756126778063,-1571.16,0.00041095,30]
[381286766,1756126778096,-956.49,0.00041095,30]
[381286767,1756126778129,-480.0,0.00041095,30]
[381286768,1756126778163,-621.03,0.00041095,30]
[381286769,1756126778196,-669.29,0.00041095,30]
[381286770,1756126778230,-480.0,0.00041095,30]
[381286771,1756126778263,-1188.59,0.00041095,30]
[381286772,1756126778295,-480.0,0.00041095,30]
[381286773,1756126778327,-568.84344379,0.00041095,30]
[381286774,1756126778360,-480.0,0.00041095,30]
[381286775,1756126778394,-1297.99,0.00041095,30]
[381286776,1756126778428,-2581.69,0.00041095,30]
[381286777,1756126778461,-774.78,0.00041095,30]
[381286778,1756126778493,-480.0,0.00041095,30]
[381286779,1756126778525,-480.0,0.00041095,30]
[381286780,1756126778557,-1000.0,0.00041095,30]
[381286781,1756126778588,-881.29,0.00041095,30]
[381286782,1756126778619,-505.82,0.00041095,30]
[381286783,1756126778652,-480.13199113,0.00041095,30]
[381286784,1756126778850,-480.0,0.00041095,30]
[381286785,1756126778884,-480.0,0.00041095,30]
[381286786,1756126778917,-2261.22,0.00041095,30]
[381286787,1756126778951,-480.0,0.00041095,30]
[381286788,1756126778986,-480.0,0.00041095,30]
[381286789,1756126779021,-3005.43,0.00041095,30]
[381286790,1756126779055,-480.0,0.00041095,30]
[381286791,1756126779088,-1413.93,0.00041095,30]
[381286792,1756126779121,-480.0,0.00041095,30]
[381286793,1756126779154,-480.0,0.00041095,30]
[381286794,1756126779187,-2793.59,0.00041095,30]
[381286795,1756126779221,-937.21,0.00041095,30]
[381286796,1756126779253,-480.0,0.00041095,30]
[381286797,1756126779285,-480.0,0.00041095,30]
[381286798,1756126779318,-743.01,0.00041095,30]
[381286799,1756126779352,-480.0,0.00041095,30]
[381286800,1756126779384,-549.23,0.00041095,30]
[381286801,1756126779417,-561.14,0.00041095,30]
[381286802,1756126779450,-223.81401171,0.00041095,30]
[381286803,1756126779481,-480.0,0.00041095,30]
[381286804,1756126779513,-480.0,0.00041095,30]
[381286805,1756126779544,-605.34,0.00041095,30]
[381286806,1756126779578,-1149.42,0.00041095,120]
[381286807,1756126779610,-480.0,0.00041095,30]
[381286808,1756126779642,-822.59,0.00041095,30]
[381286809,1756126779674,-1277.61,0.00041095,30]
[381286810,1756126779707,-480.0,0.00041095,30]
[381286811,1756126779739,-1439.88,0.00041095,30]
[381286812,1756126779772,-878.22,0.00041095,30]
[381286813,1756126779805,-480.0,0.00041095,30]
[381286814,1756126779838,-1045.63,0.00041095,30]
[381286815,1756126779872,-2001.99,0.00041095,30]
[381286816,1756126779906,-550.64,0.00041095,30]
[381286817,1756126779941,-563.53,0.00041095,30]
[381286818,1756126779979,-480.0,0.00041095,30]
[381286819,1756126780014,-480.0,0.00041095,30]
[381286820,1756126780051,-480.0,0.00041095,30]
[381286821,1756126780084,-480.0,0.00041095,30]
[381286822,1756126780117,-358.8920907,0.00041095,30]
[381286823,1756126780150,-500.0,0.00041095,30]
[381286824,1756126780183,-1412.42,0.00041095,30]
[381286825,1756126780216,-500.0,0.00041095,30]
[381286826,1756126780250,-500.0,0.00041095,30]
[381286827,1756126780284,-500.0,0.00041095,30]
[381286828,1756126780318,-431.29291786,0.00041095,30]
[381286829,1756126780353,-1742.12,0.00041095,30]
[381286830,1756126780386,-3909.96,0.00041095,30]
[381286831,1756126780419,-688.96,0.00041095,30]
[381286832,1756126780450,-480.0,0.00041095,30]
[381286833,1756126780483,-766.68,0.00041095,30]
[381286834,1756126780516,-480.0,0.00041095,30]
[381286835,1756126780548,-480.0,0.00041095,30]
[381286836,1756126780580,-480.0,0.00041095,30]
[381286837,1756126780612,-628.26,0.00041095,30]
[381286838,1756126780645,-506.78,0.00041095,30]
[381286839,1756126780677,-680.17,0.00041095,30]
[381286840,1756126780710,-1206.33,0.00041095,30]
[381286841,1756126780749,-1727.87,0.00041095,30]
[381286842,1756126780784,-480.0,0.00041095,30]
[381286843,1756126780817,-480.0,0.00041095,30]
[381286844,1756126780851,-480.0,0.00041095,30]
[381286845,1756126780885,-510.03980501,0.00041095,30]
[381286846,1756126780919,-480.0,0.00041095,30]
[381286847,1756126780952,-480.0,0.00041095,30]
[381286848,1756126780986,-480.0,0.00041095,30]
[381286849,1756126781020,-480.0,0.00041095,30]
[381286850,1756126781053,-480.0,0.00041095,30]
[381286851,1756126781086,-480.0,0.00041095,30]
[381286852,1756126781119,-480.0,0.00041095,30]
[381286853,1756126781151,-480.0,0.00041095,30]
[381286854,1756126781185,-603.26,0.00041095,30]
[381286855,1756126781220,-480.0,0.00041095,30]
[381286856,1756126781255,-480.0,0.00041095,30]
[381286857,1756126781291,-527.55,0.00041095,30]
[381286858,1756126781326,-480.0,0.00041095,30]
[381286859,1756126781361,-480.0,0.00041095,30]
[381286860,1756126781394,-480.0,0.00041095,30]
[381286861,1756126781430,-176.93448887,0.00041095,30]
[381286862,1756126781465,-480.0,0.00041095,30]
[381286863,1756126781500,-1790.75,0.00041095,30]
[381286864,1756126781535,-1248.92,0.00041095,30]
[381286865,1756126781570,-480.0,0.00041095,30]
[381286866,1756126781604,-480.0,0.00041095,30]
[381286867,1756126781638,-1991.8,0.00041095,30]
[381286868,1756126781672,-480.0,0.00041095,30]
[381286869,1756126781707,-836.57,0.00041095,30]
[381286870,1756126781740,-692.37,0.00041095,30]
[381286871,1756126781774,-480.0,0.00041095,30]
[381286872,1756126781808,-4667.32,0.00041095,30]
[381286873,1756126781842,-557.41,0.00041095,30]
[381286874,1756126781876,-986.08,0.00041095,30]
[381286875,1756126781911,-1221.05,0.00041095,30]
[381286876,1756126781949,-480.0,0.00041095,30]
[381286877,1756126781983,-755.37,0.00041095,30]
[381286878,1756126782020,-480.0,0.00041095,30]
[381286879,1756126782055,-480.0,0.00041095,30]
[381286880,1756126782087,-480.0,0.00041095,30]
[381286881,1756126782119,-480.0,0.00041095,30]
[381286882,1756126782152,-480.0,0.00041095,30]
[381286883,1756126782184,-480.0,0.00041095,30]
[381286884,1756126782217,-747.3,0.00041095,30]
[381286885,1756126782249,-480.0,0.00041095,30]
[381286886,1756126782281,-3173.1,0.00041095,30]
[381286887,1756126782313,-480.0,0.00041095,30]
[381286888,1756126782349,-480.0,0.00041095,30]
[381286889,1756126782550,-500.0,0.00041095,30]
[381286890,1756126782584,-727.52,0.00041095,30]
[381286891,1756126782619,-500.0,0.00041095,30]
[381286892,1756126782651,-500.0,0.00041095,30]
[381286893,1756126782683,-500.0,0.00041095,30]
[381286894,1756126782715,-480.0,0.00041095,30]
[381286895,1756126782748,-500.0,0.00041095,30]
[381286896,1756126782780,-500.0,0.00041095,30]
[381286897,1756126782813,-500.0,0.00041095,30]
[381286898,1756126782844,-500.0,0.00041095,30]
[381286899,1756126782876,-500.0,0.00041095,30]
[381286900,1756126782909,-500.0,0.00041095,30]
[381286901,1756126782942,-480.0,0.00041095,30]
[381286902,1756126782979,-500.0,0.00041095,30]
[381286903,1756126783015,-500.0,0.00041095,30]
[381286904,1756126783055,-457.06,0.00041095,30]
[381286905,1756126783089,-480.0,0.00041095,30]
[381286906,1756126783124,-480.0,0.00041095,30]
[381286907,1756126783159,-620.02,0.00041095,30]
[381286908,1756126783193,-1130.37,0.00041095,30]
[381286909,1756126783228,-480.0,0.00041095,30]
[381286910,1756126783263,-480.0,0.00041095,30]
[381286911,1756126783294,-480.0,0.00041095,30]
[381286912,1756126783327,-825.61,0.00041095,30]
[381286913,1756126783360,-569.35,0.00041095,30]
[381286914,1756126783394,-480.0,0.00041095,30]
[381286915,1756126783427,-2292.16,0.00041095,30]
[381286916,1756126783459,-480.0,0.00041095,30]
[381286917,1756126783490,-480.0,0.00041095,30]
[381286918,1756126783522,-669.15,0.00041095,30]
[381286919,1756126783556,-480.0,0.00041095,30]
[381286920,1756126783590,-480.0,0.00041095,30]
[381286921,1756126783624,-162.38815105,0.00041095,30]
[381286922,1756126783658,-2069.49,0.00041095,30]
[381286923,1756126783699,-1047.3,0.00041095,30]
[381286924,1756126783736,-480.0,0.00041095,30]
[381286925,1756126783773,-480.57503293,0.00041095,30]
[381286926,1756126783808,-1273.34,0.00041095,30]
[381286927,1756126783846,-480.0,0.00041095,30]
[381286928,1756126783884,-711.39,0.00041095,30]
[381286929,1756126783923,-480.0,0.00041095,30]
[381286930,1756126783961,-480.0,0.00041095,30]
[381286931,1756126783998,-480.0,0.00041095,30]
[381286932,1756126784046,-1403.13,0.00041095,30]
[381286933,1756126784084,-2829.89,0.00041095,30]
[381286934,1756126784122,-914.55,0.00041095,30]
[381286935,1756126784158,-480.0,0.00041095,30]
[381286936,1756126784195,-480.0,0.00041095,30]
[381286937,1756126784231,-480.0,0.00041095,30]
[381286938,1756126784267,-480.0,0.00041095,30]
[381286939,1756126784304,-4631.2,0.00041095,30]
[381286940,1756126784342,-624.32,0.00041095,30]
[381286941,1756126784378,-480.0,0.00041095,30]
[381286942,1756126784411,-1073.69,0.00041095,30]
[381286943,1756126784446,-480.0,0.00041095,30]
[381286944,1756126784478,-480.0,0.00041095,30]
[381286945,1756126784510,-732.1,0.00041095,30]
[381286946,1756126784542,-1658.57,0.00041095,30]
[381286947,1756126784573,-480.0,0.00041095,30]
[381286948,1756126784605,-480.0,0.00041095,30]
[381286949,1756126784636,-480.0,0.00041095,30]
[381286950,1756126784667,-480.0,0.00041095,30]
[381286951,1756126784700,-480.0,0.00041095,30]
[381286952,1756126784733,-663.97,0.00041095,30]
[381286953,1756126784766,-480.0,0.00041095,30]
[381286954,1756126784799,-997.45,0.00041095,30]
[381286955,1756126784832,-480.0,0.00041095,30]
[381286956,1756126784864,-4726.93,0.00041095,30]
[381286957,1756126784898,-480.0,0.00041095,30]
[381286958,1756126784931,-2182.29,0.00041095,30]
[381286959,1756126784969,-896.66,0.00041095,30]
[381286960,1756126785002,-487.94,0.00041095,30]
[381286961,1756126785037,-480.0,0.00041095,30]
[381286962,1756126785071,-847.75,0.00041095,30]
[381286963,1756126785108,-37374.97,0.00041095,30]
[381286964,1756126785142,-654.73,0.00041095,30]